bitfinex/quotes_SOLUSD_20250701
["timestamp","ask_amount","ask_price","bid_price","bid_amount"]
[1751342152012,0.1,153.99,153.98,58.69434991]
[1751342152712,0.1,153.99,153.98,32.49434991]
[1751342153877,0.1,153.99,153.98,6.49434991]
[1751342155014,0.1,153.99,153.98,36.08908253]
[1751342156902,0.1,153.99,153.98,32.97867305]
[1751342157902,0.1,153.99,153.98,6.77867305]
[1751342158215,0.1,153.99,153.98,32.97867305]
[1751342159908,0.1,153.99,153.98,32.69434991]
[1751342160222,0.1,153.99,153.98,6.49434991]
[1751342172326,3.21040948,153.99,153.98,6.49434991]
[1751342174125,0.1,153.99,153.98,6.49434991]
[1751342201052,0.1,153.99,153.98,9.60475939]
[1751342202542,0.1,153.99,153.98,9.88908253]
[1751342212960,0.1,153.99,153.98,28.53873139]
[1751342213268,0.1,153.99,153.98,54.73873139]
[1751342219575,0.1,153.99,153.98,80.88089296]
[1751342220157,0.1,153.99,153.98,54.88089296]
[1751342222685,436.89982254,154.0,153.99,19.07613357]
[1751342222877,436.89982254,154.0,153.99,41.30818097]
[1751342223667,436.89982254,154.0,153.99,47.80210914]
[1751342226174,429.84582254,154.0,153.99,47.80210914]
[1751342226878,417.84510503,154.0,153.99,47.80210914]
[1751342227566,413.94110503,154.0,153.99,47.80210914]
[1751342227771,390.81110503,154.0,153.99,47.80210914]
[1751342227970,364.45110503,154.0,153.99,47.80210914]
[1751342229295,356.24110503,154.0,153.99,47.80210914]
[1751342231104,333.11110503,154.0,153.99,47.80210914]
[1751342233202,329.07210503,154.0,153.99,47.80210914]
[1751342233700,303.22110503,154.0,153.99,47.80210914]
[1751342233895,295.07110503,154.0,153.99,57.80210914]
[1751342234202,262.59855258,154.0,153.99,57.80210914]
[1751342234373,262.59855258,154.0,153.99,42.25006174]
[1751342234573,262.59855258,154.0,153.99,57.80210914]
[1751342235177,245.55855259,154.0,153.99,57.80210914]
[1751342236985,242.20655259,154.0,153.99,57.80210914]
[1751342237198,224.20655259,154.0,153.99,57.80210914]
[1751342237882,199.52955259,154.0,153.99,57.80210914]
[1751342238878,199.52955259,154.0,153.99,146.00210914]
[1751342239174,174.89255259,154.0,153.99,146.00210914]
[1751342239376,174.89255259,154.0,153.99,136.00210914]
[1751342239587,174.89255259,154.0,153.99,146.00210914]
[1751342240903,162.89255259,154.0,153.99,146.00210914]
[1751342241605,63.8424098,154.0,153.99,146.00210914]
[1751342241789,0.1,154.03,154.02,19.07613357]
[1751342241994,0.1,154.03,154.02,48.36654305]
[1751342243280,0.1,154.03,154.02,54.85920634]
[1751342253113,0.1,154.03,154.02,153.05920634]
[1751342253419,0.1,154.03,154.02,160.45927966]
[1751342265033,0.1,154.06,154.05,51.14104775]
[1751342265240,0.1,154.06,154.05,80.69578037]
[1751342277569,0.1,154.06,154.05,77.72753246]
[1751342277748,0.1,154.06,154.05,80.83794194]
[1751342287385,0.1,154.06,154.05,54.67794194]
[1751342287699,0.1,154.06,154.05,80.83794194]
[1751342294308,0.1,154.06,154.05,54.67794194]
[1751342294478,0.1,154.06,154.05,80.83794194]
[1751342296778,0.1,154.06,154.05,51.14104775]
[1751342296983,3.21040948,154.06,154.05,6.49139889]
[1751342297199,3.21040948,154.06,154.05,32.65139889]
[1751342297518,3.21040948,154.06,154.05,6.49139889]
[1751342298209,3.21040948,154.06,154.03,6.49224177]
[1751342298210,6.3002,154.05,154.03,6.49224177]
[1751342298391,3.11040948,154.04,154.03,6.49224177]
[1751342298597,3.11040948,154.04,154.0,42.39369882]
[1751342298804,3.11040948,154.01,154.0,42.39369882]
[1751342298994,3.11040948,154.02,154.0,16.23369882]
[1751342299415,6.3002,154.05,154.0,16.23369882]
[1751342299585,3.11040948,154.01,154.0,16.23369882]
[1751342308118,3.11040948,154.03,154.0,16.23369882]
[1751342308309,3.11040948,154.04,154.0,45.5041083]
[1751342308623,3.11040948,154.03,154.0,42.39369882]
[1751342309011,6.3002,154.05,154.0,42.39369882]
[1751342309201,3.11040948,154.03,154.0,42.39369882]
[1751342310227,3.11040948,154.03,154.0,48.88720531]
[1751342312418,3.11040948,154.04,154.0,84.46514725]
[1751342318138,3.11040948,154.03,154.0,81.35473777]
[1751342327851,3.11040948,154.04,154.0,81.35473777]
[1751342331259,3.11040948,154.03,154.0,81.35473777]
[1751342332752,3.11040948,154.04,154.0,81.35473777]
[1751342334428,1.7207,154.06,154.0,81.35473777]
[1751342334629,3.11040948,154.04,154.0,81.35473777]
[1751342334832,0.1,154.06,154.01,21.76005834]
[1751342335042,3.21040948,154.06,154.02,29.27040948]
[1751342335247,3.11040948,154.05,154.02,26.16]
[1751342335665,3.11040948,154.04,154.02,26.16]
[1751342337066,3.11040948,154.04,154.03,6.49224177]
[1751342338140,3.11040948,154.04,154.0,81.35473777]
[1751342338358,3.11040948,154.03,154.0,81.35473777]
[1751342340144,3.11040948,154.02,154.0,22.72720531]
[1751342340557,3.11040948,154.03,154.0,22.72720531]
[1751342340759,3.11040948,154.03,154.0,48.88720531]
[1751342341046,0.1,154.06,154.0,22.72720531]
[1751342341047,3.11040948,154.01,154.0,22.72720531]
[1751342341246,3.11040948,154.02,154.0,22.72720531]
[1751342341448,3.11040948,154.03,154.0,22.72720531]
[1751342341752,3.11040948,154.02,154.0,22.72720531]
[1751342346475,3.11040948,154.03,154.0,22.72720531]
[1751342348072,3.11040948,154.04,154.0,25.83761479]
[1751342348974,3.11040948,154.04,154.0,22.72720531]
[1751342349269,3.11040948,154.04,154.0,48.88720531]
[1751342350879,3.11040948,154.03,154.0,48.88720531]
[1751342351395,3.11040948,154.04,154.0,48.88720531]
[1751342354494,0.1,154.06,154.0,51.99761479]
[1751342354671,3.11040948,154.04,154.0,51.99761479]
[1751342355179,0.1,154.06,154.0,51.99761479]
[1751342355484,0.1,154.06,154.01,21.76005834]
[1751342355785,0.1,154.06,154.02,29.27040948]
[1751342355786,3.21040948,154.06,154.02,29.27040948]
[1751342356492,3.21040948,154.06,154.03,6.49224177]
[1751342356675,3.21040948,154.06,154.03,22.72284619]
[1751342358188,0.1,154.06,154.03,25.83325567]
[1751342362796,3.21040948,154.06,154.03,22.72284619]
[1751342372280,0.1,154.06,154.03,22.72284619]
[1751342374912,3.11040948,154.04,154.03,22.72284619]
[1751342375208,3.11040948,154.04,154.03,6.49224177]
[1751342375405,0.1,154.06,154.03,25.14189063]
[1751342375601,0.1,154.06,154.03,51.30189063]
[1751342375993,0.1,154.06,154.03,67.53249505]
[1751342378108,0.1,154.06,154.03,70.64290453]
[1751342378913,0.1,154.06,154.03,67.53249505]
[1751342383018,3.21040948,154.06,154.03,67.53249505]
[1751342385525,0.1,154.06,154.03,67.53249505]
[1751342388124,3.21040948,154.06,154.03,67.53249505]
[1751342389721,0.1,154.06,154.03,67.53249505]
[1751342396913,0.1,154.06,154.03,67.73249505]
[1751342402532,3.11040948,154.05,154.03,41.57249505]
[1751342402702,0.1,154.06,154.03,41.57249505]
[1751342402703,3.11040948,154.04,154.03,6.69224177]
[1751342403029,29.11040948,154.04,153.99,6.49392817]
[1751342403211,3.11040948,154.0,153.99,6.49392817]
[1751342403417,3.11040948,154.0,153.98,22.7301377]
[1751342403608,3.11040948,153.99,153.98,22.7301377]
[1751342405502,3.11040948,153.99,153.98,6.49434991]
[1751342411341,3.11040948,153.99,153.97,6.69462271]
[1751342411556,3.11040948,153.98,153.97,0.2]
[1751342414132,3.11040948,153.98,153.97,6.6947717]
[1751342417630,6.66,154.02,153.97,6.6947717]
[1751342417824,3.11040948,153.98,153.97,6.6947717]
[1751342418866,3.11040948,153.98,153.97,0.2]
[1751342425874,3.11040948,153.98,153.97,6.6947717]
[1751342435997,26.0,154.01,153.97,6.6947717]
[1751342436174,3.11040948,153.98,153.97,6.6947717]
[1751342450955,29.11040948,153.98,153.97,0.2]
[1751342453129,29.53689419,153.98,153.97,0.2]
[1751342453635,29.11040948,153.98,153.97,0.2]
[1751342459300,29.11040948,153.98,153.97,6.6947717]
[1751342459467,29.11040948,153.98,153.97,0.2]
[1751342460992,29.11040948,153.98,153.97,6.6947717]
[1751342462375,29.11040948,153.98,153.97,0.2]
[1751342463632,29.11040948,153.98,153.97,6.6947717]
[1751342467305,29.11040948,153.98,153.97,0.2]
[1751342471444,26.0,153.97,153.96,0.2]
[1751342471621,33.9792645,153.97,153.96,0.2]
[1751342471827,29.11040948,153.97,153.96,6.69519355]
[1751342472026,29.11040948,153.97,153.96,0.2]
[1751342472543,26.0,153.97,153.96,0.2]
[1751342472727,29.11040948,153.97,153.96,0.2]
[1751342479039,3.11040948,153.97,153.96,6.69519355]
[1751342485374,3.11040948,153.98,153.96,6.69519355]
[1751342485568,146.2,154.01,153.96,9.80560303]
[1751342485569,4.86805365,154.0,153.96,9.80560303]
[1751342485772,3.11040948,154.01,153.96,9.80560303]
[1751342486850,3.11040948,154.01,153.96,26.04358692]
[1751342488044,3.11040948,154.02,153.98,3.11040948]
[1751342488250,3.11040948,154.02,153.96,55.40914522]
[1751342488451,3.11040948,154.02,153.98,3.11040948]
[1751342489478,3.11040948,154.02,153.99,22.72874861]
[1751342490281,3.21040948,154.03,153.99,22.72874861]
[1751342490459,0.1,154.03,154.0,7.6136]
[1751342491582,0.1,154.03,154.01,6.49308486]
[1751342494691,3.21040948,154.03,154.01,6.49308486]
[1751342496177,3.11040948,154.02,154.01,6.49308486]
[1751342497894,3.11040948,154.02,153.99,16.23482044]
[1751342501502,3.11040948,154.02,153.98,3.11040948]
[1751342501917,3.11040948,154.01,153.97,25.84211045]
[1751342503095,3.11040948,154.0,153.97,22.73170097]
[1751342503298,3.11040948,153.98,153.97,6.4947717]
[1751342503593,3.11040948,154.0,153.97,22.73170097]
[1751342506901,3.11040948,154.01,153.97,22.73170097]
[1751342507606,3.11040948,154.0,153.97,22.73170097]
[1751342511311,3.11040948,154.0,153.97,22.93170097]
[1751342514427,3.11040948,154.02,153.97,26.04211045]
[1751342514997,3.11040948,154.01,153.97,26.04211045]
[1751342517222,3.11040948,154.01,153.97,22.93170097]
[1751342521629,0.1,154.03,153.97,22.93170097]
[1751342521803,3.11040948,154.01,153.97,22.93170097]
[1751342530126,3.11040948,153.99,153.97,6.6947717]
[1751342531037,3.11040948,154.0,153.97,6.6947717]
[1751342533264,3.11040948,153.98,153.97,6.6947717]
[1751342535760,3.11040948,153.98,153.97,0.2]
[1751342547779,3.21040948,153.98,153.97,0.2]
[1751342553390,9.70475939,153.98,153.97,0.2]
[1751342554782,3.21040948,153.98,153.97,0.2]
[1751342556094,9.70475939,153.98,153.97,0.2]
[1751342559908,0.42648471,153.97,153.96,0.2]
[1751342560201,26.0,153.95,153.94,0.2]
[1751342560386,29.11040948,153.95,153.94,0.2]
[1751342561000,26.0,153.94,153.91,0.2]
[1751342561304,3.11040948,153.92,153.91,0.2]
[1751342561472,15.5520474,153.92,153.91,0.2]
[1751342562100,3.11040948,153.92,153.91,0.2]
[1751342565711,41.5520474,153.92,153.91,0.2]
[1751342569109,48.4754136,153.92,153.91,0.2]
[1751342570129,26.14216157,153.91,153.9,0.2]
[1751342570290,29.25257105,153.91,153.9,0.2]
[1751342570496,175.45257105,153.91,153.89,0.2]
[1751342570727,3.25257105,153.9,153.89,0.2]
[1751342571753,9.75029684,153.9,153.89,0.2]
[1751342572018,5.01399735,153.9,153.89,0.2]
[1751342573022,11.51172314,153.9,153.89,0.2]
[1751342577658,5.01399735,153.9,153.89,0.2]
[1751342581061,11.51172314,153.9,153.89,0.2]
[1751342583179,5.01399735,153.9,153.89,0.2]
[1751342586998,26.0,153.86,153.84,0.2]
[1751342587157,30.87183578,153.85,153.84,0.2]
[1751342588286,35.74367156,153.85,153.84,0.2]
[1751342589087,30.87183578,153.85,153.84,0.2]
[1751342592375,13.1590126,153.87,153.84,0.2]
[1751342592376,6.66,153.87,153.84,0.2]
[1751342592582,4.87183578,153.85,153.84,6.70026001]
[1751342593868,3.1180405,153.85,153.84,6.70026001]
[1751342594178,6.66,153.87,153.84,6.70026001]
[1751342594360,9.7780405,153.87,153.84,6.70026001]
[1751342595871,11.53052208,153.87,153.84,6.70026001]
[1751342597078,4.87052208,153.86,153.84,6.70026001]
[1751342601697,6.66,153.87,153.84,6.70026001]
[1751342601872,11.53052208,153.87,153.84,6.70026001]
[1751342607289,11.53052208,153.87,153.84,22.95091003]
[1751342607490,4.87052208,153.88,153.84,22.95091003]
[1751342607892,4.87052208,153.87,153.84,22.95091003]
[1751342612179,146.2,153.89,153.84,22.95091003]
[1751342612180,4.87052208,153.85,153.84,0.2]
[1751342613010,4.87052208,153.85,153.84,6.70026001]
[1751342617034,4.87052208,153.85,153.84,0.2]
[1751342617926,3.11853068,153.85,153.84,0.2]
[1751342619533,3.11853068,153.85,153.84,6.70026001]
[1751342622951,3.11853068,153.85,153.84,0.2]
[1751342624651,35.61836818,153.85,153.84,0.2]
[1751342624821,33.98260496,153.85,153.84,0.2]
[1751342625224,29.11853068,153.85,153.84,0.2]
[1751342625756,30.87411179,153.85,153.84,0.2]
[1751342626350,35.73679017,153.85,153.84,0.2]
[1751342628332,42.23662767,153.85,153.84,0.2]
[1751342628953,0.42648471,153.84,153.83,0.1]
[1751342629154,15.03738667,153.84,153.83,0.1]
[1751342629337,167.73764668,153.84,153.83,0.1]
[1751342636165,193.93764668,153.84,153.83,0.1]
[1751342637166,189.0749683,153.84,153.83,0.1]
[1751342640359,193.9234508,153.84,153.83,0.1]
[1751342641168,189.0749683,153.84,153.83,0.1]
[1751342641875,61.52461716,153.84,153.83,0.1]
[1751342642067,26.0,153.82,153.81,0.1]
[1751342642267,11.37521697,153.82,153.81,0.1]
[1751342643259,146.2,153.83,153.81,0.1]
[1751342643485,4.87411179,153.82,153.81,0.1]
[1751342643788,26.28432314,153.81,153.78,0.2]
[1751342643960,5.3005965,153.8,153.78,0.2]
[1751342644360,11.80254708,153.8,153.78,0.2]
[1751342645163,4.87411179,153.8,153.78,0.2]
[1751342645388,11.37606237,153.8,153.78,0.2]
[1751342645900,4.87411179,153.8,153.78,0.2]
[1751342646394,11.37606237,153.8,153.78,0.2]
[1751342647057,4.87411179,153.8,153.78,0.2]
[1751342647566,11.37606237,153.8,153.78,0.2]
[1751342649792,10.05050669,153.8,153.78,0.2]
[1751342652943,156.25050669,153.8,153.78,0.2]
[1751342655949,149.3220714,153.8,153.78,0.2]
[1751342657068,155.82402198,153.8,153.78,0.2]
[1751342666979,28.70015555,153.8,153.78,0.2]
[1751342667143,36.05092947,153.79,153.78,0.2]
[1751342667464,47.59076397,153.79,153.78,0.2]
[1751342670648,193.79076397,153.79,153.78,0.2]
[1751342677465,167.79076397,153.79,153.78,0.2]
[1751342681069,167.99076397,153.79,153.78,0.2]
[1751342682870,26.0,153.77,153.76,0.1]
[1751342683071,3.1220714,153.77,153.76,0.1]
[1751342683261,7.9819059,153.77,153.76,0.1]
[1751342684376,14.48512499,153.77,153.76,0.1]
[1751342689186,26.97341059,153.77,153.76,0.1]
[1751342690882,14.48512499,153.77,153.76,0.1]
[1751342693585,40.48512499,153.77,153.76,0.1]
[1751342695590,35.62529049,153.77,153.76,0.1]
[1751342695797,40.49516703,153.77,153.76,0.1]
[1751342696094,33.99194794,153.77,153.76,0.1]
[1751342697468,40.49516703,153.77,153.76,0.1]
[1751342697983,40.69516703,153.77,153.76,0.1]
[1751342699188,29.3220714,153.77,153.76,0.1]
[1751342699601,0.2,153.77,153.76,6.60364203]
[1751342699776,0.2,153.77,153.76,17.45371343]
[1751342703218,0.2,153.77,153.76,36.38768543]
[1751342703483,0.2,153.79,153.76,52.64679052]
[1751342703789,0.2,153.79,153.78,3.1220714]
[1751342704770,0.2,153.79,153.76,30.59074712]
[1751342704974,3.1220714,153.78,153.76,14.33164203]
[1751342707807,4.87640386,153.78,153.76,14.33164203]
[1751342707983,4.87640386,153.77,153.76,14.33164203]
[1751342708497,4.87640386,153.77,153.76,0.1]
[1751342708693,30.87640386,153.77,153.76,0.1]
[1751342722136,26.0,153.77,153.76,6.60364203]
[1751342722335,30.87640386,153.77,153.76,6.60364203]
[1751342726538,4.87640386,153.77,153.76,6.60364203]
[1751342727541,30.87640386,153.77,153.76,6.60364203]
[1751342727912,29.12151799,153.77,153.76,6.60364203]
[1751342731128,29.32151799,153.77,153.76,6.60364203]
[1751342731552,3.32151799,153.77,153.76,6.60364203]
[1751342731716,0.2,153.77,153.76,6.60364203]
[1751342732528,3.32151799,153.77,153.76,6.60364203]
[1751342734724,3.32151799,153.77,153.76,0.1]
[1751342743360,29.32151799,153.77,153.76,0.1]
[1751342748465,9.82473708,153.77,153.76,0.1]
[1751342748772,27.18063366,153.77,153.76,0.1]
[1751342751164,27.60711837,153.77,153.76,0.1]
[1751342751469,72.47676723,153.77,153.76,0.1]
[1751342751870,19.07613357,153.76,153.75,0.1]
[1751342752053,41.19074814,153.76,153.75,0.1]
[1751342752255,47.69439017,153.76,153.75,0.1]
[1751342754685,32.08680022,153.76,153.75,0.1]
[1751342754863,47.69439017,153.76,153.75,0.1]
[1751342755970,29.12151799,153.73,153.72,0.1]
[1751342756986,66.88891892,153.73,153.72,0.1]
[1751342757177,73.39383012,153.73,153.72,0.1]
[1751342758286,73.82031483,153.73,153.72,0.1]
[1751342759385,26.0,153.7,153.69,0.1]
[1751342759564,3.5480027,153.7,153.69,0.1]
[1751342761376,10.05418357,153.7,153.69,0.1]
[1751342768698,26.0,153.67,153.62,6.6094258]
[1751342768878,3.12151799,153.63,153.62,6.6094258]
[1751342784282,26.0,153.65,153.62,6.6094258]
[1751342784694,26.0,153.65,153.59,24.21609556]
[1751342787001,26.0,153.65,153.6,6.51041666]
[1751342788325,32.50847156,153.65,153.6,6.51041666]
[1751342788488,26.0,153.65,153.6,6.51041666]
[1751342796014,3.12151799,153.62,153.6,6.51041666]
[1751342797128,3.12151799,153.62,153.6,22.88645832]
[1751342798317,3.12151799,153.62,153.6,6.61041666]
[1751342798524,3.12151799,153.61,153.6,0.1]
[1751342802230,3.12151799,153.61,153.6,6.61041666]
[1751342803937,3.12151799,153.61,153.6,0.1]
[1751342814471,43.91497466,153.61,153.6,0.1]
[1751342814754,29.12151799,153.61,153.6,0.1]
[1751342815350,26.0,153.61,153.6,0.1]
[1751342815565,146.2,153.64,153.6,6.61041666]
[1751342815726,149.32151799,153.64,153.6,6.61041666]
[1751342815919,0.2,153.65,153.62,3.12151799]
[1751342816420,3.32151799,153.65,153.61,8.0497]
[1751342817860,3.12151799,153.64,153.62,6.50956906]
[1751342818153,3.12151799,153.63,153.62,6.50956906]
[1751342818327,0.2,153.65,153.62,6.50956906]
[1751342818528,3.12151799,153.63,153.62,6.50956906]
[1751342820079,0.2,153.65,153.62,6.50956906]
[1751342820374,3.12151799,153.63,153.62,6.50956906]
[1751342820777,3.12151799,153.63,153.6,16.37604166]
[1751342820778,3.12151799,153.63,153.6,6.61034579]
[1751342820958,3.12151799,153.61,153.6,6.61034579]
[1751342822885,3.12151799,153.61,153.6,0.1]
[1751342823651,29.12151799,153.61,153.6,0.1]
[1751342824069,48.11758278,153.61,153.6,0.1]
[1751342824774,52.99194793,153.61,153.6,0.1]
[1751342825785,47.16393744,153.61,153.6,0.1]
[1751342826086,40.65394461,153.61,153.6,0.1]
[1751342826387,47.16393744,153.61,153.6,0.1]
[1751342827388,40.65394461,153.61,153.6,0.1]
[1751342827554,30.88978973,153.61,153.6,0.1]
[1751342830778,4.88978973,153.61,153.6,6.61030307]
[1751342848001,3.12792427,153.61,153.6,6.61030307]
[1751342848192,0.2,153.62,153.6,6.61030307]
[1751342848392,3.12792427,153.61,153.6,6.61030307]
[1751342861610,3.12792427,153.61,153.6,0.1]
[1751342864996,3.12792427,153.61,153.6,6.61041666]
[1751342866207,0.2,153.62,153.6,6.61041666]
[1751342866412,3.12792427,153.61,153.6,6.61041666]
[1751342867797,0.2,153.62,153.6,6.61041666]
[1751342867998,0.2,153.62,153.61,18.933972]
[1751342870196,0.2,153.62,153.61,6.79431597]
[1751342870410,0.2,153.62,153.61,6.50999283]
[1751342870726,3.32792427,153.62,153.61,6.50999283]
[1751342894846,0.2,153.62,153.61,6.50999283]
[1751342896653,0.2,153.62,153.61,6.60999283]
[1751342897224,0.2,153.62,153.61,25.6861264]
[1751342903649,3.32792427,153.62,153.61,6.60999283]
[1751342903961,3.32792427,153.62,153.61,0.1]
[1751342905864,5.08809365,153.62,153.61,0.1]
[1751342908260,5.08809365,153.62,153.61,6.60999283]
[1751342909865,5.08809365,153.62,153.61,0.1]
[1751342919967,5.08809365,153.62,153.61,6.60999283]
[1751342925751,3.32737993,153.62,153.61,6.60999283]
[1751342928954,0.2,153.62,153.61,6.60999283]
[1751342929979,0.2,153.62,153.61,25.54396483]
[1751342936992,3.12737993,153.63,153.61,25.54396483]
[1751342941074,3.12737993,153.62,153.61,25.54396483]
[1751342943479,3.12737993,153.62,153.61,6.60999283]
[1751342943677,3.12737993,153.62,153.61,0.1]
[1751342946889,3.32737993,153.62,153.61,0.1]
[1751342947790,3.32737993,153.62,153.61,6.60999283]
[1751342948206,0.2,153.62,153.61,6.60999283]
[1751342948374,3.32737993,153.62,153.61,6.60999283]
[1751342949100,0.2,153.62,153.61,6.60999283]
[1751342951610,3.32737993,153.62,153.61,6.60999283]
[1751342963413,3.32737993,153.62,153.61,0.1]
[1751342964999,3.32737993,153.62,153.6,0.1]
[1751342965187,3.12737993,153.61,153.6,0.1]
[1751342966118,3.12737993,153.61,153.6,6.61041666]
[1751342966296,0.2,153.62,153.6,6.61041666]
[1751342966498,3.12737993,153.61,153.6,6.61041666]
[1751342966895,3.32737993,153.62,153.6,25.26006552]
[1751342967286,3.32737993,153.62,153.6,6.61041666]
[1751342967287,3.12737993,153.61,153.6,6.61041666]
[1751342973715,0.2,153.62,153.6,6.61041666]
[1751342974016,3.12737993,153.61,153.6,6.61041666]
[1751342974404,0.2,153.62,153.6,6.61041666]
[1751342974606,3.12737993,153.61,153.6,6.61041666]
[1751342979219,15.63689965,153.61,153.56,6.51211252]
[1751342979419,3.12737993,153.57,153.55,0.1]
[1751342979622,3.12737993,153.56,153.55,6.61236426]
[1751342979932,3.12737993,153.56,153.55,0.1]
[1751342981304,3.12737993,153.56,153.55,6.61253663]
[1751342992937,26.0,153.57,153.55,6.61253663]
[1751342993234,3.12737993,153.56,153.55,6.61253663]
[1751343008152,26.0,153.57,153.55,6.61253663]
[1751343008532,3.12737993,153.56,153.55,6.61253663]
[1751343027370,26.0,153.57,153.55,6.61253663]
[1751343027566,3.12737993,153.56,153.55,6.61253663]
[1751343029059,26.0,153.57,153.55,6.61253663]
[1751343029260,3.12737993,153.56,153.55,6.61253663]
[1751343032072,3.12737993,153.56,153.55,0.1]
[1751343033553,3.12737993,153.56,153.55,6.61253663]
[1751343039564,3.12737993,153.56,153.55,0.1]
[1751343040256,3.12737993,153.56,153.55,6.61253663]
[1751343041103,3.12737993,153.56,153.55,0.1]
[1751343045360,9.63949245,153.56,153.55,0.1]
[1751343045670,3.12737993,153.56,153.55,0.1]
[1751343049756,29.12737993,153.56,153.55,0.1]
[1751343058593,37.20579245,153.56,153.55,0.1]
[1751343058885,3.12737993,153.5,153.48,0.1]
[1751343059067,3.12737993,153.49,153.48,6.6155069]
[1751343060599,3.12737993,153.5,153.48,41.83824616]
[1751343060976,26.0,153.53,153.48,35.22273926]
[1751343061173,3.12737993,153.5,153.48,35.22273926]
[1751343062091,3.12737993,153.5,153.48,41.73824616]
[1751343063972,3.12737993,153.51,153.48,41.73824616]
[1751343065803,3.12737993,153.5,153.48,41.73824616]
[1751343081615,3.32737993,153.5,153.48,41.73824616]
[1751343096532,0.2,153.5,153.49,25.44905441]
[1751343103519,0.2,153.5,153.48,22.80427416]
[1751343103726,3.32737993,153.5,153.48,22.80427416]
[1751343107033,0.2,153.5,153.48,22.80427416]
[1751343122536,0.2,153.5,153.49,18.933972]
[1751343122942,0.2,153.5,153.49,19.07613357]
[1751343123151,0.2,153.5,153.49,25.59121598]
[1751343141679,3.32737993,153.5,153.49,6.51508241]
[1751343142384,0.2,153.5,153.49,18.79181043]
[1751343142690,3.32737993,153.5,153.49,18.933972]
[1751343143072,0.2,153.5,153.49,18.933972]
[1751343143671,0.2,153.5,153.49,25.44905441]
[1751343152097,0.2,153.5,153.49,51.68905441]
[1751343152682,0.2,153.5,153.49,51.83121598]
[1751343154176,0.2,153.5,153.49,32.75508241]
[1751343154693,3.32737993,153.5,153.49,32.75508241]
[1751343155486,3.32737993,153.5,153.48,49.04427416]
[1751343156201,0.2,153.5,153.48,49.04427416]
[1751343159000,0.2,153.5,153.49,26.24]
[1751343160003,0.2,153.5,153.49,32.75508241]
[1751343166619,0.2,153.5,153.48,22.80427416]
[1751343166907,0.2,153.5,153.49,26.24]
[1751343169195,0.2,153.5,153.49,32.75508241]
[1751343170012,0.2,153.5,153.49,51.68905441]
[1751343189328,0.2,153.5,153.49,51.83121598]
[1751343190120,0.2,153.5,153.49,51.68905441]
[1751343192509,3.32737993,153.5,153.49,6.51508241]
[1751343210937,0.2,153.5,153.49,25.16473127]
[1751343216639,0.2,153.5,153.49,6.51508241]
[1751343216640,3.32737993,153.5,153.49,6.51508241]
[1751343217713,3.32737993,153.5,153.48,6.5155069]
[1751343220544,3.12737993,153.49,153.48,6.5155069]
[1751343220744,3.12737993,153.49,153.47,6.61589931]
[1751343220949,3.12737993,153.48,153.47,6.61589931]
[1751343222445,3.12737993,153.48,153.47,0.1]
[1751343222831,26.0,153.49,153.47,0.1]
[1751343223028,3.12737993,153.48,153.47,0.1]
[1751343225452,3.12737993,153.48,153.47,6.61593145]
[1751343227548,3.12737993,153.48,153.47,0.1]
[1751343227724,29.12737993,153.48,153.47,0.1]
[1751343228154,3.12737993,153.48,153.47,0.1]
[1751343230527,0.2,153.5,153.47,6.61587667]
[1751343230754,3.12737993,153.48,153.47,6.61587667]
[1751343237853,3.12737993,153.49,153.47,6.61587667]
[1751343239358,3.12737993,153.48,153.47,6.61587667]
[1751343239546,0.2,153.5,153.47,6.61587667]
[1751343239745,3.12737993,153.48,153.47,6.61587667]
[1751343242761,3.12737993,153.49,153.47,6.61587667]
[1751343245365,3.32737993,153.5,153.47,22.9057053]
[1751343245656,0.2,153.5,153.48,21.77702879]
[1751343245837,0.2,153.5,153.49,22.2035135]
[1751343246852,0.2,153.5,153.49,28.71859591]
[1751343248758,2.82737993,153.53,153.5,18.64964886]
[1751343249661,2.82737993,153.53,153.5,18.14964886]
[1751343249854,2.82737993,153.53,153.51,6.5142336]
[1751343252741,2.82737993,153.53,153.51,6.0142336]
[1751343254663,26.2,153.55,153.51,6.0142336]
[1751343254860,3.12737993,153.53,153.51,6.0142336]